Cogmind - Beta 10.2 @@@ ROGUE MODE // 2021.04.19 @ 17:18:09 Player: kicktown Result: Destroyed by Y-45 Defender with Heavy Assault Rifle Performance ------------- Evolutions (2) 1000 Regions Visited (7) 1400 Robots Destroyed (35) 175 Value Destroyed (1335) 1335 Prototype IDs (2) 40 Alien Tech Used (0) 0 Bonus (60) 60 TOTAL SCORE: 4010 Bonus ------- Follower Combat Kills 60 Cogmind --------- Core Integrity 0/550 Matter 300/300 Energy 271/275 System Corruption 1% Temperature Cool (11) Movement Treading (160) Location -8/Storage Parts ------- > --- POWER (1) -------- Deuterium Engine > --- PROPULSION (3) --- Light Treads Light Treads Aluminum Leg > --- UTILITY (5) ------ Improved Heat Sink Advanced Weight Redist. System Armor Integrity Analyzer Maneuvering Thrusters Hardlight Generator > --- WEAPON (2) ------- Scythe > --- INVENTORY (4) ---- Improved Ion Engine Light Nuclear Core Heat Sink Peak State ------------ > --- POWER ------------ Deuterium Engine > --- PROPULSION ------- Light Treads Light Treads Aluminum Leg > --- UTILITY ---------- Improved Heat Sink Advanced Weight Redist. System Armor Integrity Analyzer Maneuvering Thrusters Hardlight Generator > --- WEAPON ----------- Scythe > --- INVENTORY -------- Light Nuclear Core Heat Sink [Rating: 23] Favorites ----------- Power Light Ion Engine Engine Light Ion Engine Power Core Light Nuclear Core Propulsion Light Treads Treads Light Treads Leg Aluminum Leg Wheel Compact Wheel Utility High-capacity Storage Unit Device Experimental Sensor Array Storage High-capacity Storage Unit Processor Armor Integrity Analyzer Weapon Grenade Launcher Energy Gun Small Laser Ballistic Gun Light Assault Rifle Launcher Grenade Launcher Special Weapon Mining Laser Slashing Weapon Scythe Build | -11 -10 -9 -9 -9 -8 -8 -8 ------- Run | Scr Mat Mat Min Exi Min Mat Sto Slots Evolved 4 | . . 2 . . . 2 . Power . | . . . . . . . . Propulsion 1 | . . . . . . 1 . Utility 3 | . . 2 . . . 1 . Weapon . | . . . . . . . . Parts Attached 68 | 6 15 2 14 . 5 17 9 Power 6 | 1 1 . 2 . 1 1 . Engine 5 | 1 1 . 2 . . 1 . Core 1 | . . . . . 1 . . Reactor . | . . . . . . . . Propulsion 24 | 2 8 . 7 . . 4 3 Treads 12 | 1 4 . 4 . . 1 2 Leg 4 | . . . . . . 3 1 Wheel 8 | 1 4 . 3 . . . . Hover . | . . . . . . . . Flight . | . . . . . . . . Utility 14 | 1 2 2 1 . . 4 4 Device 8 | . . . 1 . . 3 4 Storage 5 | 1 2 2 . . . . . Processor 1 | . . . . . . 1 . Hackware . | . . . . . . . . Protection . | . . . . . . . . Artifact . | . . . . . . . . Weapon 24 | 2 4 . 4 . 4 8 2 Energy Gun 6 | . . . 1 . 2 1 2 Energy Cannon . | . . . . . . . . Ballistic Gun 11 | 2 2 . 1 . 2 4 . Ballistic Cannon . | . . . . . . . . Launcher 4 | . 1 . 2 . . 1 . Special Weapon 2 | . 1 . . . . 1 . Impact Weapon . | . . . . . . . . Slashing Weapon 1 | . . . . . . 1 . Piercing Weapon . | . . . . . . . . Special Melee Weapon . | . . . . . . . . Unidentified Prototypes 2 | . . . 1 . . 1 . Parts Lost 23 | . . . 5 . 1 16 1 Power 2 | . . . 1 . . 1 . Propulsion 8 | . . . 2 . . 6 . Utility 2 | . . . . . . 2 . Weapon 11 | . . . 2 . 1 7 1 Highest Loss Streak 15 | . . . 3 . 1 15 1 Average Slot Usage (%) 86 | . 94 100 96 79 99 65 70 Engine 8 | . 14 11 10 11 2 . 9 Core 1 | . . . . . 8 4 . Treads 11 | . 11 . 16 11 11 6 4 Wheel 8 | . 16 22 5 11 11 4 . Device 9 | . . . 6 11 11 8 30 Storage 30 | . 23 44 37 33 33 23 . Processor 1 | . . . . . . 5 9 Energy Gun 3 | . . . 6 1 8 3 4 Ballistic Gun 4 | . 18 22 2 . 12 5 . Launcher 4 | . 8 . 10 1 . 1 . Naked Turns . | . . . . . . . . Heaviest Build 104 | 10 72 102 104 88 90 92 20 Greatest Support 40 | 16 40 32 40 16 16 40 40 Greatest Overweight (x) 26 | . 2 3 6 5 5 26 1 Average Overweight (x) 3 | . 1 3 3 5 5 3 . Largest Inventory Capacity 32 | 6 20 32 32 26 26 26 4 Average Capacity 23 | 5 15 31 28 26 26 23 4 Most Carried 19 | 4 12 11 11 12 15 19 3 Average Carried 8 | 2 7 9 7 9 13 13 . Final Capacity 32 | 6 20 32 26 26 26 4 4 Final Carried 15 | 4 12 9 6 12 15 . 3 Class Distribution -------------------- 86% | Hauler-Mutant 11% | Mutant Dominant Class ---------------- Hauler-Mutant | -10/Materials Hauler-Mutant | -9/Materials Hauler-Mutant | -9/Mines Hauler-Mutant | -9/Exiles Hauler-Mutant | -8/Mines Hauler-Mutant | -8/Materials Mutant | -8/Storage Resources | -11 -10 -9 -9 -9 -8 -8 -8 ----------- Run | Scr Mat Mat Min Exi Min Mat Sto Matter Collected 1310 | 206 301 . 336 118 114 120 115 Remotely . | . . . . . . . . Salvage Created 1232 | . 280 34 270 . 144 266 238 Parts 72 | . 19 . 13 . 7 16 17 Haulers Intercepted 1 | . 1 . . . . . . Recyclers Shooed . | . . . . . . . . Parts Field Recycled . | . . . . . . . . Retrieved Matter . | . . . . . . . . Parts Self-Destructed . | . . . . . . . . Prevented . | . . . . . . . . Kills | -11 -10 -9 -9 -9 -8 -8 -8 ------- Run | Scr Mat Mat Min Exi Min Mat Sto Combat Hostiles Destroyed 41 | . 6 . 20 . 3 7 5 Melee 6 | . . . . . . 1 5 Guns 7 | . 3 . . . 3 1 . AOE 28 | . 3 . 20 . . 5 . Classes Destroyed 8 | . 4 1 2 . . 1 . Worker 1 | . 1 . . . . . . Hauler 1 | . 1 . . . . . . Mechanic 1 | . . 1 . . . . . Watcher 1 | . 1 . . . . . . Swarmer 3 | . . . 3 . . . . Grunt 22 | . 6 . 7 . 3 3 3 Sentry 6 | . . . . . . 4 2 Assembled 10 | . . . 10 . . . . Best Kill Streak 10 | . 4 1 10 . 3 4 2 Combat Bots Only 10 | . 2 . 10 . 3 4 2 Max Kills in Single Turn 4 | . 1 1 3 . 1 4 1 Gunslinging . | . . . . . . . . Exploded 4 | . 1 . 3 . . 4 . Melee 1 | . . . . . . 1 1 Uniques/NPCs Destroyed . | . . . . . . . . Combat | -11 -10 -9 -9 -9 -8 -8 -8 -------- Run | Scr Mat Mat Min Exi Min Mat Sto Damage Taken 3146 | . 254 . 632 . 331 1745 184 Core 764 | . 48 . 118 . 33 505 60 Absorbed by Shields 21 | . . . . . . . 21 Core Remaining (%) 80 | 100 80 . . . 62 . . Volleys Fired 82 | . 22 6 21 . 15 17 1 Largest 2 | . 2 2 1 . 2 2 1 Hottest 100 | . 50 40 40 . 60 100 50 Shots Fired 133 | . 41 12 21 . 30 28 1 Gun 104 | . 33 12 4 . 30 24 1 Cannon . | . . . . . . . . Launcher 25 | . 5 . 17 . . 3 . Special 4 | . 3 . . . . 1 . Kinetic 86 | . 33 12 3 . 20 18 . Thermal 17 | . 3 . 1 . 10 3 . Explosive 25 | . 5 . 17 . . 3 . Electromagnetic 5 | . . . . . . 4 1 Robot Hit Streak 13 | . 9 11 5 . 2 13 3 Robot Miss Streak 2 | . 2 1 1 . 1 2 . Penetration Max . | . . . . . . . . Secondary Targets . | . . . . . . . . Shots Hit Robots 81 | . 29 6 7 . 3 24 12 Core Hits 89 | . 15 2 39 . 11 17 5 Critical Hits 1 | . . . . . 1 . . Critical Kills 1 | . . . . . 1 . . Critical Parts Destroyed . | . . . . . . . . Melee Attacks 19 | . . . . . . 2 17 Impact . | . . . . . . . . Slashing 19 | . . . . . . 2 17 Piercing . | . . . . . . . . Sneak Attacks . | . . . . . . . . Combat Hostiles . | . . . . . . . . Follow-up Attacks . | . . . . . . . . Damage Inflicted 3329 | . 499 67 1244 . 258 899 362 Guns 871 | . 311 67 10 . 258 203 22 Cannons . | . . . . . . . . Explosions 2074 | . 188 . 1234 . . 652 . Melee 340 | . . . . . . . 340 Ramming 20 | . . . . . . 20 . Kinetic 705 | . 311 67 10 . 158 159 . Thermal 759 | . . . . . 100 659 . Explosive 1455 | . 188 . 1234 . . 33 . Electromagnetic 50 | . . . . . . 28 22 Impact . | . . . . . . . . Slashing 340 | . . . . . . . 340 Piercing . | . . . . . . . . Highest Corruption 4 | . . . 4 4 4 1 1 Average Corruption 3 | . . . 4 4 4 1 1 Corruption Purged . | . . . . . . . . Effects 35 | . . . 16 13 5 . 1 Message Errors 10 | . . . 4 5 1 . . Matter Fused 6 | . . . 4 1 1 . . Heat Flow Errors 4 | . . . 2 2 . . . Energy Discharges 8 | . . . 3 2 2 . 1 Data Loss (minor) 6 | . . . 3 3 . . . Targeting Errors 1 | . . . . . 1 . . Overload Shots . | . . . . . . . . Overflow Damage 107 | . . . 23 . . 68 16 Projectiles . | . . . . . . . . Explosions 91 | . . . 23 . . 68 . Melee 16 | . . . . . . . 16 Knockbacks . | . . . . . . . . Impact . | . . . . . . . . Kinetic . | . . . . . . . . Secondary . | . . . . . . . . Self-Inflicted Damage 99 | . . . 16 . . 83 . Shots 3 | . . . 2 . . 1 . Rammed 9 | . . . . . . 9 . Targets Rammed 9 | . . . . . . 9 . Kicked . | . . . . . . . . Crushed . | . . . . . . . . Highest Temperature 222 | . 26 . 220 222 55 30 . Average Temperature 42 | . 13 . 90 100 27 8 . Received Heat Transfer 1032 | . 138 . 71 . 180 558 85 Siege Activations . | . . . . . . . . Robots Corrupted . | . . . . . . . . Combat Hostiles . | . . . . . . . . Parts Fried . | . . . . . . . . Impact Corruptions . | . . . . . . . . Robots Melted . | . . . . . . . . Combat Hostiles . | . . . . . . . . Parts Melted . | . . . . . . . . Heat Transferred 662 | . . . . . 225 437 . Parts Sabotaged . | . . . . . . . . Parts Stolen . | . . . . . . . . Parts Stripped . | . . . . . . . . Power Chain Reactions . | . . . . . . . . Missiles Intercepted . | . . . . . . . . Alert | -11 -10 -9 -9 -9 -8 -8 -8 ------- Run | Scr Mat Mat Min Exi Min Mat Sto Peak Influence 378 | . 214 110 378 . 75 201 281 Initial 90 | . . 90 42 . . 29 84 Average 132 | . 133 95 172 . 65 81 154 Maximum Alert Level 1 | . 1 . 1 . . 1 1 Low Security (%) 77 | 100 83 100 64 . 100 99 57 Level 1 22 | . 16 . 35 . . . 42 Level 2 . | . . . . . . . . Level 3 . | . . . . . . . . Level 4 . | . . . . . . . . Level 5 . | . . . . . . . . High Security . | . . . . . . . . Max Security . | . . . . . . . . Squads Dispatched 6 | . . 1 . . . 4 1 Investigation . | . . . . . . . . Extermination . | . . . . . . . . Reinforcement 3 | . . 1 . . . 1 1 Assault . | . . . . . . . . Garrison 3 | . . . . . . 3 . Intercept . | . . . . . . . . Construction Impeded . | . . . . . . . . Haulers Reinforced . | . . . . . . . . Stealth | -11 -10 -9 -9 -9 -8 -8 -8 --------- Run | Scr Mat Mat Min Exi Min Mat Sto Distress Signals . | . . . . . . . . Communications Jammed . | . . . . . . . . Distress Signals . | . . . . . . . . Times Spotted 70 | . 6 2 35 . 3 13 11 Peak Tracking Total 22 | . 2 1 22 . 3 6 3 Tactical Retreats 5 | . . . 2 . . 1 2 Traps | -11 -10 -9 -9 -9 -8 -8 -8 ------- Run | Scr Mat Mat Min Exi Min Mat Sto Traps Triggered 1 | . . . . . . . 1 Indirectly . | . . . . . . . . Trap Hack Attempts . | . . . . . . . . Triggered . | . . . . . . . . Disarmed . | . . . . . . . . Reprogrammed . | . . . . . . . . Reused . | . . . . . . . . Traps Extracted . | . . . . . . . . Installed . | . . . . . . . . Triggered . | . . . . . . . . Machines | -11 -10 -9 -9 -9 -8 -8 -8 ---------- Run | Scr Mat Mat Min Exi Min Mat Sto Machines Disabled 7 | . 1 . 3 . . 3 . Max in Single Turn 2 | . 1 . 1 . . 2 . Machines Sabotaged . | . . . . . . . . Garrisons Compromised . | . . . . . . . . Overloaded Fab Kills . | . . . . . . . . Fab Network Shutdowns . | . . . . . . . . Hacking | -11 -10 -9 -9 -9 -8 -8 -8 --------- Run | Scr Mat Mat Min Exi Min Mat Sto Machines Accessed 5 | . . . 1 4 . . . Terminals . | . . . . . . . . Fabricators . | . . . . . . . . Repair Stations . | . . . . . . . . Recycling Units . | . . . . . . . . Scanalyzers . | . . . . . . . . Garrison Access . | . . . . . . . . Total Hacks 50 | . . . 1 49 . . . Successful 50 | . . . 1 49 . . . Failed . | . . . . . . . . Catastrophic . | . . . . . . . . Database Lockouts . | . . . . . . . . Manual 1 | . . . . 1 . . . Terminals . | . . . . . . . . Fabricators . | . . . . . . . . Repair Stations . | . . . . . . . . Recycling Units . | . . . . . . . . Scanalyzers . | . . . . . . . . Garrison Access . | . . . . . . . . Terminal Hacks 50 | . . . 1 49 . . . Record 49 | . . . . 49 . . . Open Door 1 | . . . 1 . . . . Fabricator Hacks . | . . . . . . . . Repair Station Hacks . | . . . . . . . . Recycling Unit Hacks . | . . . . . . . . Scanalyzer . | . . . . . . . . Garrison Access Hacks . | . . . . . . . . Unauthorized Hacks . | . . . . . . . . Terminals . | . . . . . . . . Fabricators . | . . . . . . . . Repair Stations . | . . . . . . . . Recycling Units . | . . . . . . . . Scanalyzers . | . . . . . . . . Garrison Access . | . . . . . . . . Data Cores Recovered . | . . . . . . . . Used . | . . . . . . . . Hacking Detections . | . . . . . . . . Full Trace Events . | . . . . . . . . Feedback Events . | . . . . . . . . Feedback Blocked . | . . . . . . . . Robot Schematics Acquired . | . . . . . . . . Robots Built . | . . . . . . . . Matter . | . . . . . . . . Time . | . . . . . . . . Total Robot Build Rating . | . . . . . . . . Part Schematics Acquired . | . . . . . . . . Parts Built . | . . . . . . . . Matter . | . . . . . . . . Time . | . . . . . . . . Total Part Build Rating . | . . . . . . . . Parts Repaired . | . . . . . . . . Time . | . . . . . . . . Parts Recycled . | . . . . . . . . Recycled Matter . | . . . . . . . . Retrieved Matter . | . . . . . . . . Retrieved Components . | . . . . . . . . Parts Scanalyzed . | . . . . . . . . Part Schematics Acquired . | . . . . . . . . Parts Damaged . | . . . . . . . . Bothacking | -11 -10 -9 -9 -9 -8 -8 -8 ------------ Run | Scr Mat Mat Min Exi Min Mat Sto Used RIF Installer . | . . . . . . . . Robots Hacked . | . . . . . . . . Non-combat . | . . . . . . . . Combat . | . . . . . . . . Robot Hacks Applied . | . . . . . . . . Relay Couplers Released . | . . . . . . . . Robots Rewired . | . . . . . . . . Allies Hacked . | . . . . . . . . Hacks Repelled . | . . . . . . . . Allies | -11 -10 -9 -9 -9 -8 -8 -8 -------- Run | Scr Mat Mat Min Exi Min Mat Sto Total Allies 1 | . . . 1 . . . . Largest Group 1 | . . . 1 . . . . Highest-Rated Group 31 | . . . 31 . . . . Highest-Rated Ally 31 | . . . 31 . . . . Total Orders . | . . . . . . . . Ally Attacks 12 | . . . 12 . . . . Total Damage 164 | . . . 164 . . . . Kills 2 | . . . 2 . . . . Allies Corrupted . | . . . . . . . . Allies Melted . | . . . . . . . . Intel | -11 -10 -9 -9 -9 -8 -8 -8 ------- Run | Scr Mat Mat Min Exi Min Mat Sto Robot Analysis Total . | . . . . . . . . Derelict Logs Recovered 2 | . . . 2 . . . . Drone Launches . | . . . . . . . . Drone Recoveries . | . . . . . . . . Exploration | -11 -10 -9 -9 -9 -8 -8 -8 ------------- Run | Scr Mat Mat Min Exi Min Mat Sto Turns Passed 3050 | 55 285 37 989 829 279 358 218 Spaces Moved 1615 | 37 163 14 445 547 151 161 97 Core 119 | 2 . . . . . 50 67 Treads 277 | . 19 . 219 . . 14 25 Legs 25 | . . . . . . 20 5 Wheels 1194 | 35 144 14 226 547 151 77 . Hover . | . . . . . . . . Flight . | . . . . . . . . Fastest Speed 50 | 50 100 130 130 150 150 50 50 Average Speed 151 | 97 118 130 175 150 150 160 111 Slowest Speed 1350 | 100 180 130 200 150 150 1350 160 Overloaded Moves . | . . . . . . . . Propulsion Burnouts . | . . . . . . . . Robots Hopped . | . . . . . . . . Cave-ins Triggered 1 | . . . 1 . . . . Exploration Rate (%) 37 | 3 32 4 95 92 37 18 19 Regions Visited 7 Branch Regions 4 Pre-discovered Areas 2 | . . . 1 1 . . . Known Exits Taken . | . . . . . . . . Unknown Exits Taken 7 | 1 1 1 1 1 1 1 . Scrap Searched 2 | . . . 2 . . . . Spaces Dug 11 | . . . . . . 9 2 Terrain Destroyed 163 | . 28 . 82 . . 51 2 Melee 4 | . . . . . . 2 2 Projectile . | . . . . . . . . AOE 159 | . 28 . 82 . . 49 . Terrain Rammed . | . . . . . . . . Walls Destroyed . | . . . . . . . . Machines Disabled . | . . . . . . . . Actions | -11 -10 -9 -9 -9 -8 -8 -8 --------- Run | Scr Mat Mat Min Exi Min Mat Sto Total 2039 | 52 209 22 630 557 177 215 177 Wait 210 | 6 1 . 147 5 . . 51 Move 1608 | 36 162 13 444 546 150 160 97 Hop . | . . . . . . . . Pick Up 29 | 4 7 . 2 4 6 4 2 Fast Attach 21 | 6 1 . 1 . 1 4 8 Attach 23 | . 1 2 6 . 3 11 . Detach 3 | . . . 1 2 . . . Swap 24 | . 13 . 7 . 1 2 1 Drop 11 | . 2 1 1 . 1 6 . Fire 82 | . 22 6 21 . 15 17 1 Melee 19 | . . . . . . 2 17 Ram 8 | . . . . . . 8 . Kick . | . . . . . . . . Crush 1 | . . . . . . 1 . Escape Stasis . | . . . . . . . . Rewire . | . . . . . . . . Trap . | . . . . . . . . Miscellaneous . | . . . . . . . . Route ------- -11/Scrapyard -10/Materials -9/Materials -9/Mines (discovered 3 exits: [*Mat x2] / *Exi) -9/Exiles (discovered 2 exits: [*Min x2]) -8/Mines -8/Materials -8/Storage History --------- Turn | Location | Event 13 | -11/Scrapyard | Discovered new exit (range 15) 56 | -11/Scrapyard | Entered Materials 128 | -10/Materials | Discovered new exit (range 15) 341 | -10/Materials | Entered another Materials area 341 | -9/Materials | Evolved 2 slots: Utility x2 344 | -9/Materials | Discovered new exit (range 8) 378 | -9/Materials | Entered Mines 381 | -9/Mines | Received a Mining Laser from a helpful Derelict 411 | -9/Mines | Discovered new exit (range 7) 448 | -9/Mines | Build established: Hauler-Mutant 454 | -9/Mines | Crushed by falling debris 543 | -9/Mines | Discovered new exit (range 11) 599 | -9/Mines | Assembled infested the area 650 | -9/Mines | Destroyed 10 combat bots 657 | -9/Mines | Lost 3 parts (1n2w) 664 | -9/Mines | Learned Materials terminal intel 725 | -9/Mines | Learned location of Zion (-7) 776 | -9/Mines | Found a damaged Exp. Sensor Array with a note attached 780 | -9/Mines | Found Prototype Device 780 | -9/Mines | Identified Exp. Sensor Array 1059 | -9/Mines | Met a Derelict who couldn't figure out how to use a Trap Extractor 1337 | -9/Mines | Deemed a non-threat by the Exiles lab entrance 1337 | -9/Mines | Discovered new exit (range 5) 1367 | -9/Mines | Entered Exiles 1388 | -9/Exiles | Discovered new exit (range 14) 1417 | -9/Exiles | Met 8R-AWN 1441 | -9/Exiles | Met EX-HEX 1494 | -9/Exiles | Met EX-BIN 1640 | -9/Exiles | Met EX-DEC 1815 | -9/Exiles | Visited The Gauntlet 2080 | -9/Exiles | Discovered new exit (range 14) 2196 | -9/Exiles | Entered Mines 2337 | -8/Mines | Discovered new exit (range 15) 2475 | -8/Mines | Entered Materials 2475 | -8/Materials | Evolved 2 slots: Propulsion x1, Utility x1 2476 | -8/Materials | Loaded intel: 12 terminal locations 2763 | -8/Materials | Lost 15 parts (1p6n1u7w) 2774 | -8/Materials | Core integrity fell below 50% 2792 | -8/Materials | Core integrity fell below 20% 2811 | -8/Materials | Discovered new exit (range 14) 2833 | -8/Materials | Entered Storage 3051 | -8/Storage | Destroyed by Y-45 Defender with Heavy Assault Rifle Last Messages --------------- 02958_ G-47 Trooper destroyed. 02960_ R-06 Scavenger collects Lgt. Armor Plating. 02961_ Acquired Aluminum Leg. 02964_ K-01 Serf cleans the Compression Vault. 02964_ Acquired Heat Sink. 02965_ R-06 Scavenger collects Heat Sink. 02968_ K-01 Serf collects debris. 02973_ Shock Rifle destroyed. 02975_ K-01 Serf collects debris. 02979_ G-47 Trooper destroyed. 02981_ K-01 Serf collects debris. 02989_ Acquired 15 matter. 02996_ Acquired Lgt. Treads. 02998_ K-01 Serf collects debris. 02999_ Acquired Lgt. Treads. 03001_ K-01 Serf collects debris. 03007_ Acquired 30 matter. 03014_ K-01 Serf collects debris. 03044_ Y-45 Defender destroyed. 03050_ Acquired Imp. Ion Engine. Map ----- +----------------------------------------------------+ | ????????????????????????? ?????????????+ #?????? | | ????????????????????????? ?????????????# #?????? | | ????????????????????????? ?????????????# #?????? | | ????????????????????????? ?????????????# #?????? | | ????????????????????????? ?????????????# +?????? | | ????????????????????????? ?????????????# #?????? | | ????????????????????????# #????????????# #?????? | | ????????????????????????# #????????????# #????## | | ????????????????????????# #???#######??# ######" | | ????????????????????????# #???#"""""#??# # | | ????????????????????????# #####""T""#### # | | ????????????????????????#r## # # """ | | ???????????????????????##Y## # # """ | | ????????????????????#### =#% %+ + """ | | ????????????????????+ +%% # # """ | | ????????????????????#### * #* """ """ # # | | ???????????????????????## ## """ """ # # | | ????????????????????????# ## """ """ # # | | ????????????????????????# ############## ####### | | ????????????????????????# #????????????# # | | ????????????????????????# #????????????# # % | | ????????????????????????# #????????????# # | | ????????????????????????# #????????????# # | | ????????????????######### ####?????????+ / | | ???????????????# != +?????????# # " | | ???????????????# ########@####?????????# # "G | | ??????????????????????? %[ ???????????# # "" | | ??????????????????????# """ #?????????# # | | ??????????????????????# "T" #?????????# ####### | | ??????????????????????# #?????????#####?????? | | ??????????????????????# [= #???????????????????? | | ??????????????????????# [= ! ???????????????????? | | ??????????????????????########???????????????????? | | ?????????????????????????????????????????????????? | | | | | | | | | | | | | | | | | | | | | | | | | | | | | | | | | +----------------------------------------------------+ Best States ------------- Heat Dissipation 50 Energy Generation 14 Energy Capacity 275 Matter Stores 300 Matter Capacity 300 Sight Range 16 Robot Scan Range 30 Terrain Scan Density 10 Additional Mass Support 9 Evasion (%) 56 Armor Integrity Analysis 33 Recoil Reduction 2 Item Schematics ----------------- None Robot Schematics ------------------ None Fabricated ------------ Nothing Alien Tech Used ----------------- None Achievements -------------- Hunted I Survived The Infestation Challenges ------------ None Game ------ Seed LargeBehemothNullifier Manual? 0 Play Time 00:31:43 Cumulative 27.4 hours Start 2021.04.19 @ 16:46:26 End 2021.04.19 @ 17:18:09 Sessions 1 Manual Loads 0 Difficulty Rogue Special Mode None Game No. 15 Rogue 15 Adventurer 0 Explorer 0 Win Type - Total 0 Types 0/0/0/0/0/0/0/0/0 Lore% 20 Gallery% 29 Achievement% 22 Wizard Run 0 Options --------- ASCII 0 Keyboard 0 Movement Mouse Keybinds 0 Fullscreen 2 Font 18/TerminusBold Map View 76x50 Tactical HUD 1 Map Filters NONE Filters NONE Steam 1 RUN: 50ce49e0-6241-4b5d-9a76-cf9b98ed6629